fUSD/lending_fUSD_20251126
["ID","MTS","AMOUNT","RATE_DAILY","PERIOD"]
[394927021,1764139848653,-500.0,0.00019999,2]
[394927022,1764139848662,-500.0,0.00019999,2]
[394927023,1764139848671,-546.12383411,0.00019999,2]
[394927024,1764139848683,-1523.49185475,0.0002,2]
[394927025,1764139848693,-25432.94540885,0.0002,2]
[394927026,1764139848702,-500.0,0.00020112,2]
[394927027,1764139848712,-500.0,0.00020112,2]
[394927028,1764139848724,-500.0,0.00020112,2]
[394927029,1764139848733,-150.0,0.00020112,2]
[394927030,1764139848742,-500.0,0.00020112,2]
[394927031,1764139848751,-160.04729565,0.00020112,2]
[394927032,1764139848760,-500.0,0.00020112,2]
[394927033,1764139848769,-150.0,0.00020112,2]
[394927034,1764139848778,-151.82329458,0.00020112,2]
[394927035,1764139848788,-500.0,0.00020112,2]
[394927036,1764139848797,-500.0,0.00020112,2]
[394927037,1764139848806,-500.0,0.00020112,2]
[394927038,1764139848815,-1000.0,0.00020146,2]
[394927039,1764139848824,-329.61,0.00020187,2]
[394927040,1764139848834,-166.66,0.00020244,2]
[394927041,1764139848843,-500.0,0.00020249,2]
[394927042,1764139848852,-500.0,0.00020249,2]
[394927043,1764139848861,-500.0,0.00020249,2]
[394927044,1764139849018,-208.3208585,0.00020249,2]
[394927045,1764139849028,-500.0,0.00020249,2]
[394927046,1764139849038,-610.26076645,0.00020249,2]
[394927047,1764139849048,-150.0,0.00020249,2]
[394927048,1764139849058,-500.0,0.00020249,2]
[394927049,1764139849067,-500.0,0.00020249,2]
[394927050,1764139849076,-500.0,0.00020249,2]
[394927051,1764139849085,-366.79,0.00020249,2]
[394927052,1764139849095,-1000.0,0.00020286,2]
[394927053,1764139849104,-3600.2216,0.00020286,2]
[394927054,1764139849115,-500.0,0.00020386,2]
[394927055,1764139849124,-500.0,0.00020386,2]
[394927056,1764139849135,-601.05605615,0.00020386,2]
[394927057,1764139849144,-500.0,0.00020386,2]
[394927058,1764139849153,-249.54378381,0.00020386,2]
[394927059,1764139849162,-500.0,0.00020386,2]
[394927060,1764139849171,-500.0,0.00020386,2]
[394927061,1764139849180,-500.0,0.00020386,2]
[394927062,1764139849193,-1000.0,0.00020521,2]
[394927063,1764139849204,-1000.0,0.00020521,2]
[394927064,1764139849215,-1000.0,0.00020521,2]
[394927065,1764139849224,-500.0,0.00020523,2]
[394927066,1764139849234,-341.98072454,0.00020523,2]
[394927067,1764139849244,-500.0,0.00020523,2]
[394927068,1764139849253,-500.0,0.00020523,2]
[394927069,1764139849262,-500.0,0.00020523,2]
[394927070,1764139849273,-616.08992006,0.00020523,2]
[394927071,1764139849283,-366.79,0.00020523,2]
[394927072,1764139849293,-153.04,0.00020639,2]
[394927073,1764139849303,-400.0,0.00020658,2]
[394927074,1764139849313,-2500.0,0.00020659,2]
[394927075,1764139849323,-189.66028457,0.0002066,2]
[394927076,1764139849332,-500.0,0.0002066,2]
[394927077,1764139849342,-500.0,0.0002066,2]
[394927078,1764139849351,-500.0,0.0002066,2]
[394927079,1764139849362,-1000.0,0.00020697,2]
[394927080,1764139849372,-150.0,0.00020708,2]
[394927081,1764139849382,-1852.42,0.00020759,2]
[394927082,1764139849392,-500.0,0.00020797,2]
[394927083,1764139849402,-618.9839776,0.00020797,2]
[394927084,1764139849411,-500.0,0.00020797,2]
[394927085,1764139849423,-366.83449545,0.00020797,2]
[394927086,1764139849432,-1000.0,0.00020874,2]
[394927087,1764139849442,-265.42,0.0002091,2]
[394927088,1764139849451,-500.0,0.00020934,2]
[394927089,1764139849460,-500.0,0.00020934,2]
[394927090,1764139849470,-1500.0,0.00021068,2]
[394927091,1764139849479,-1500.0,0.00021068,2]
[394927092,1764139849488,-1500.0,0.00021068,2]
[394927093,1764139849499,-500.0,0.00021071,2]
[394927094,1764139849508,-500.0,0.00021071,2]
[394927095,1764139849523,-514.67246063,0.00021208,2]
[394927096,1764139849533,-500.0,0.00021208,2]
[394927097,1764139849543,-600.0,0.00021342,2]
[394927098,1764139849555,-500.0,0.00021345,2]
[394927099,1764139849565,-500.0,0.00021482,2]
[394927100,1764139849576,-751.95,0.00021551,2]
[394927101,1764139849585,-1000.0,0.00021602,2]
[394927102,1764139849596,-836.23775155,0.00021616,2]
[394927103,1764139849606,-593.05194727,0.00021616,2]
[394927104,1764139849616,-2000.0,0.00021616,2]
[394927105,1764139849625,-167.24,0.00021618,2]
[394927106,1764139849635,-569.0,0.00021619,2]
[394927107,1764139849644,-5000.0,0.00021918,2]
[394927108,1764139849653,-192.0,0.00022,2]
[394927109,1764139849664,-802.25682158,0.00022027,2]
[394927110,1764139849675,-1000.0,0.00022163,2]
[394927111,1764139849684,-1086.77074543,0.00022164,2]
[394927112,1764139849693,-265.42,0.0002228,2]
[394927113,1764139849702,-1000.0,0.00022331,2]
[394927114,1764139849711,-153.9,0.00022801,2]
[394927115,1764139849720,-250.0,0.00023216,2]
[394927116,1764139849729,-167.24,0.00023266,2]
[394927117,1764139849739,-751.95,0.00023946,2]
[394927118,1764139849748,-1000.0,0.00024626,2]
[394927119,1764139849758,-1000.0,0.00024658,2]
[394927120,1764139849768,-164.93,0.00024658,2]
[394927121,1764139849779,-150.0,0.00024658,2]
[394927122,1764139849788,-162.8078139,0.00025,3]
[394927123,1764139849797,-427.1289864,0.00025971,2]
[394927124,1764139849806,-153.9,0.00026058,2]
[394927125,1764139849816,-751.95,0.0002634,120]
[394927126,1764139849825,-150.0,0.00026438,2]
[394927127,1764139849834,-258.9823428,0.00026438,2]
[394927128,1764139849843,-329.61,0.00026676,2]
[394927129,1764139849853,-250.0,0.00027,2]
[394927130,1764139849862,-1024.45613598,0.00027,2]
[394927131,1764139849871,-530.0,0.00027,2]
[394927132,1764139849880,-350.0,0.00027018,2]
[394927133,1764139849890,-512.05078534,0.00027018,2]
[394927134,1764139849899,-1917.32917928,0.00027019,2]
[394927135,1764139849986,-2312.64082072,0.00027019,2]
[394927136,1764139849995,-2600.63,0.00027078,2]
[394927137,1764139850004,-515.0,0.00027088,2]
[394927138,1764139850013,-1000.0,0.00027088,2]
[394927139,1764139850023,-598.19387279,0.0002739,2]
[394927140,1764139850033,-500.0,0.00027397,5]
[394927141,1764139850043,-386.63,0.00027562,2]
[394927142,1764139850052,-165.18,0.00027887,2]
[394927143,1764139850062,-4326.62637935,0.00028,2]
[394927144,1764139850073,-168.0,0.00028465,2]
[394927145,1764139850084,-168.0,0.00028508,2]
[394927146,1764139850093,-56.34271964,0.00028518,2]
[394927147,1764139975958,227.99436972,0.00042025,30]
[394927148,1764139981535,200.0,0.00042025,30]
[394927149,1764139988907,200.0,0.00042025,30]
[394927150,1764139994493,200.0,0.00042025,30]
[394927151,1764139996674,2113.26,0.000182,60]
[394927152,1764140000155,200.0,0.00042025,30]
[394927153,1764140006362,200.0,0.00042025,30]
[394927154,1764140011824,200.0,0.00042025,30]
[394927155,1764140017427,200.0,0.00042025,30]
[394927156,1764140022380,200.0,0.00042025,30]
[394927157,1764140028090,200.0,0.00042025,30]
[394927158,1764140033162,200.0,0.00042025,30]
[394927159,1764140041295,200.0,0.00042025,30]
[394927160,1764140046626,200.0,0.00042025,30]
[394927161,1764140047795,3549.80556073,0.00042025,31]
[394927162,1764140054545,200.0,0.00042025,30]
[394927163,1764140060349,200.0,0.00042025,30]
[394927164,1764140065463,200.0,0.00042025,30]
[394927165,1764140071196,200.0,0.00042025,30]
[394927166,1764140076427,200.0,0.00042025,30]
[394927167,1764140081660,200.0,0.00042025,30]
[394927168,1764140086730,200.0,0.00042025,30]
[394927169,1764140109627,500.0,0.00042025,31]
[394927170,1764140110238,500.0,0.00042025,31]
[394927171,1764140110929,500.0,0.00042025,31]
[394927172,1764140111561,500.0,0.00042025,31]
[394927173,1764140112176,500.0,0.00042025,31]
[394927174,1764140112350,500.0,0.00042025,31]
[394927175,1764140112794,500.0,0.00042025,31]
[394927176,1764140112983,500.0,0.00042025,31]
[394927177,1764140113421,500.0,0.00042025,31]
[394927178,1764140113628,500.0,0.00042025,31]
[394927179,1764140114079,500.0,0.00042025,31]
[394927180,1764140114292,500.0,0.00042025,31]
[394927181,1764140114892,500.0,0.00042025,31]
[394927182,1764140114968,500.0,0.00042025,31]
[394927183,1764140115517,500.0,0.00042025,31]
[394927184,1764140115618,500.0,0.00042025,31]
[394927185,1764140116157,500.0,0.00042025,31]
[394927186,1764140116254,500.0,0.00042025,31]
[394927187,1764140116831,500.0,0.00042025,31]
[394927188,1764140116905,500.0,0.00042025,31]
[394927189,1764140117452,500.0,0.00042025,31]
[394927190,1764140117530,500.0,0.00042025,31]
[394927191,1764140118144,500.0,0.00042025,31]
[394927192,1764140118622,500.0,0.00042025,31]
[394927193,1764140118774,500.0,0.00042025,31]
[394927194,1764140119079,500.0,0.00042025,31]
[394927195,1764140119388,500.0,0.00042025,31]
[394927196,1764140119700,500.0,0.00042025,31]
[394927197,1764140120090,500.0,0.00042025,31]
[394927198,1764140120356,500.0,0.00042025,31]
[394927199,1764140121038,500.0,0.00042025,31]
[394927200,1764140121362,500.0,0.00042025,31]
[394927201,1764140121671,500.0,0.00042025,31]
[394927202,1764140121998,500.0,0.00042025,31]
[394927203,1764140122321,500.0,0.00042025,31]
[394927204,1764140122603,500.0,0.00042025,31]
[394927205,1764140122961,500.0,0.00042025,31]
[394927206,1764140123587,500.0,0.00042025,31]
[394927207,1764140124204,500.0,0.00042025,31]
[394927208,1764140124904,500.0,0.00042025,31]
[394927209,1764140165367,500.0,0.00042025,31]
[394927210,1764140226030,315.08800161,0.00042025,31]
[394927212,1764140607100,636.52790757,0.00042032,120]
[394927213,1764140677818,151.0,0.00042032,50]
[394927214,1764140678111,151.0,0.00042032,50]
[394927215,1764140678637,151.0,0.00042032,50]
[394927216,1764140678963,151.0,0.00042032,50]
[394927217,1764140679274,151.0,0.00042032,50]
[394927218,1764140679565,200.000011,0.00042032,50]
[394927219,1764140824466,3179.71,0.00042032,120]
[394927220,1764140882329,162.3,0.000129,3]
[394927225,1764141031948,-500.0,0.00020149,2]
[394927226,1764141031958,-321.9387104,0.00020149,2]
[394927227,1764141032009,-169.34295379,0.00020149,2]
[394927228,1764141032018,-447.6027,0.00020149,2]
[394927229,1764141032027,-2110.2939902,0.00020149,2]
[394927230,1764141032038,-286.11200438,0.00020149,2]
[394927295,1764141040116,-1039.47602223,0.00020149,2]
[394927296,1764141040128,-1319.34,0.00020149,2]
[394927297,1764141040144,-536.39735841,0.00020149,2]
[394927298,1764141040158,-3030.275,0.00020149,2]
[394927299,1764141040328,-4574.52052478,0.00020149,2]
[394927300,1764141040345,-173.58810175,0.00023755,46]
[394927301,1764141040355,-427.1289864,0.00023881,2]
[394927302,1764141040364,-150.0,0.00024658,2]
[394927303,1764141040373,-150.0,0.00024658,2]
[394927304,1764141040382,-243.01436636,0.00024658,2]
[394927305,1764141040391,-150.0,0.00024658,2]
[394927306,1764141040402,-150.0,0.00024658,2]
[394927307,1764141040411,-150.0,0.00024658,2]
[394927308,1764141040420,-153.9260783,0.00024658,2]
[394927309,1764141040429,-150.00000001,0.00024658,2]
[394927310,1764141040438,-154.58730008,0.00024658,2]
[394927311,1764141040447,-8058.92522377,0.00024686,2]
[394927312,1764141040459,-437.10360574,0.00024686,2]
[394927313,1764141040483,-12674.63747449,0.00024686,2]
[394927314,1764141040492,-173.58810172,0.0002494,48]
[394927315,1764141040501,-150.0,0.00026027,4]
[394927316,1764141040509,-150.0,0.00026027,4]
[394927317,1764141040518,-173.58810172,0.00026125,51]
[394927318,1764141040527,-500.0,0.000268,2]
[394927319,1764141040538,-1852.42,0.00026931,2]
[394927320,1764141040547,-208.19,0.00027,2]
[394927321,1764141040556,-2209.134535,0.0002731,2]
[394927322,1764141040565,-173.58810172,0.0002731,54]
[394927323,1764141040574,-190.16314796,0.0002732,2]
[394927324,1764141040583,-150.0,0.00027397,7]
[394927325,1764141040593,-150.00000001,0.00027397,7]
[394927326,1764141040602,-150.0,0.00027397,7]
[394927327,1764141040611,-150.0,0.00027397,7]
[394927328,1764141040622,-150.0,0.00027397,7]
[394927329,1764141040631,-152.8433592,0.000274,2]
[394927330,1764141040642,-163.92,0.000274,2]
[394927331,1764141040651,-178.97507942,0.00027409,2]
[394927332,1764141040661,-500.42628914,0.00027409,2]
[394927333,1764141040671,-338.45820379,0.00027409,2]
[394927334,1764141040682,-61522.70697984,0.0002741,3]
[394927339,1764141046216,-99966.21022566,0.0002741,3]
[394927340,1764141046276,-1224.01593814,0.0002741,3]
[394927345,1764141072573,2207.342033,0.00042032,50]
[394927346,1764141072764,2207.342033,0.00042032,50]
[394927347,1764141073049,2207.342033,0.00042032,50]
[394927348,1764141073350,2207.342033,0.00042032,50]
[394927349,1764141073657,2207.342033,0.00042032,50]
[394927350,1764141073950,2207.342033,0.00042032,50]
[394927351,1764141074236,2207.342033,0.00042032,50]
[394927352,1764141074614,2207.342033,0.00042032,50]
[394927353,1764141074941,2207.342033,0.00042032,50]
[394927354,1764141075226,2207.342033,0.00042032,50]
[394927355,1764141075544,2207.342033,0.00042032,50]
[394927356,1764141075826,2207.342033,0.00042032,50]
[394927357,1764141076131,2207.342033,0.00042032,50]
[394927358,1764141076440,2207.342033,0.00042032,50]
[394927359,1764141076747,2207.342033,0.00042032,50]
[394927360,1764141077049,2207.342033,0.00042032,50]
[394927361,1764141077356,2207.342033,0.00042032,50]
[394927362,1764141077695,2207.342033,0.00042032,50]
[394927363,1764141078026,2207.342033,0.00042032,50]
[394927364,1764141078382,2207.34203545,0.00042032,50]
[394927365,1764141143473,200.0,0.00042032,30]
[394927366,1764141144143,207.0,0.00042032,30]
[394927367,1764141262511,13803.0,0.00042032,30]
[394927368,1764141452462,1825.0,0.00042032,120]
[394927369,1764141679351,151.0,0.00042032,120]
[394927370,1764141886803,603.15,0.00042032,120]
[394927371,1764141887047,603.15,0.00042032,120]
[394927372,1764141887288,603.15,0.00042032,120]
[394927373,1764141887540,603.15,0.00042032,120]
[394927374,1764141887780,603.15,0.00042032,120]
[394927375,1764141888043,603.15,0.00042032,120]
[394927376,1764141888354,603.15,0.00042032,120]
[394927377,1764141888518,603.15,0.00042032,120]
[394927378,1764141888789,603.15,0.00042032,120]
[394927379,1764141889036,603.15,0.00042032,120]
[394927380,1764141889281,603.15,0.00042032,120]
[394927381,1764141889541,603.15,0.00042032,120]
[394927382,1764141889808,603.15,0.00042032,120]
[394927383,1764141890050,603.15,0.00042032,120]
[394927384,1764141890296,603.15,0.00042032,120]
[394927385,1764141890545,603.15,0.00042032,120]
[394927386,1764141890783,603.15,0.00042032,120]
[394927387,1764141891052,603.15,0.00042032,120]
[394927388,1764141891292,603.15,0.00042032,120]
[394927389,1764141891575,603.15,0.00042032,120]
[394927390,1764141891828,603.15,0.00042032,120]
[394927391,1764141892116,603.15,0.00042032,120]
[394927392,1764141892355,603.15,0.00042032,120]
[394927393,1764141892588,603.32469747,0.00042032,120]
[394927394,1764142028662,-191.18146832,0.000162,5]
[394927395,1764142032541,-178.27722043,0.000162,5]
[394927396,1764142035275,-152.38,0.000162,5]
[394927397,1764142039130,-401.758,0.000162,5]
[394927398,1764142041304,-319.17748925,0.000162,5]
[394927399,1764142043219,-374.178,0.000162,5]
[394927400,1764142045382,-654.88651075,0.000162,5]
[394927401,1764142046948,-1938.96528739,0.000162,5]
[394927402,1764142048676,-300.0,0.000162,5]
[394927404,1764142089185,2000.0,0.00042032,30]
[394927406,1764142117448,-1228.19159712,0.00016,4]
[394927407,1764142121752,1092.0,0.00042032,30]
[394927416,1764142232146,-281.0,0.00015999,2]
[394927417,1764142232156,-1200.0,0.00015999,2]
[394927418,1764142232166,-1489.53334476,0.00016,4]
[394927419,1764142232257,-525.74328535,0.00016,4]
[394927420,1764142232272,-1337.70986208,0.00016,4]
[394927421,1764142232284,-3725.26912594,0.00016,4]
[394927422,1764142232296,-1047.77304586,0.00016,4]
[394927423,1764142232352,-4975.98254774,0.00016,4]
[394927424,1764142232362,-489.19602386,0.000162,5]
[394927425,1764142232373,-528.63560501,0.00017,2]
[394927454,1764142238077,-3448.8,0.00017,2]
[394927455,1764142238193,-2642.7001227,0.00017,2]
[394927456,1764142240360,-1.7e-07,0.00017,2]
[394927507,1764142423737,500.0,0.00042032,120]
[394927508,1764142424161,500.0,0.00042032,120]
[394927509,1764142424226,500.0,0.00042032,120]
[394927510,1764142424469,500.0,0.00042032,120]
[394927511,1764142424747,500.0,0.00042032,120]
[394927512,1764142425438,500.0,0.00042032,120]
[394927513,1764142425713,500.0,0.00042032,120]
[394927514,1764142425961,613.5344891,0.00042032,120]
[394927515,1764142453852,151.19,0.00012455,2]
[394927516,1764142453953,-1385.570355,0.00016913,2]
[394927517,1764142453976,-300.0,0.00016999,2]
[394927518,1764142453999,-18314.429645,0.00017,2]
[394927519,1764142456067,-3565.73181843,0.00017,2]
[394927520,1764142487537,5001.49701118,0.00042032,30]
[394927521,1764142559561,280.16,0.00013699,2]
[394927523,1764142878790,154.9951,0.00017,2]
[394927524,1764143197794,154.9951,0.00017,2]
[394927531,1764143432319,-151.19,0.00018682,2]
[394927532,1764143432331,-154.99511,0.00019,2]
[394927533,1764143432342,-280.16,0.00020187,2]
[394927534,1764143432353,-95.12325847,0.0002055,2]
[394927535,1764143432367,-96.05358543,0.0002055,2]
[394927536,1764143432378,-154.99511,0.00021,2]
[394927537,1764143432389,-168.0,0.00022386,2]
[394927538,1764143432400,-168.0,0.00022511,2]
[394927539,1764143432410,-154.99511,0.00023,2]
[394927540,1764143432421,-475.0,0.00023013,2]
[394927541,1764143432432,-166.66,0.00023021,30]
[394927542,1764143432443,-166.66,0.00023505,30]
[394927543,1764143432454,-474.0,0.00023565,2]
[394927544,1764143432464,-7.02159661,0.00023565,2]
[394927545,1764143432494,-333.30653703,0.00023565,2]
[394927546,1764143432602,-420.89692906,0.00023565,2]
[394927739,1764143440722,-36.0349373,0.00023565,2]
[394927740,1764143440732,-294.21526007,0.00023819,2]
[394927741,1764143440742,-150.0,0.00023819,2]
[394927742,1764143440752,-150.0,0.00023819,2]
[394927743,1764143440761,-150.0,0.00023819,2]
[394927744,1764143440771,-150.0,0.00023819,2]
[394927745,1764143440782,-474.0,0.00023844,2]
[394927746,1764143440792,-166.66,0.0002399,30]
[394927747,1764143440803,-219.0,0.00024079,2]
[394927748,1764143440814,-1000.0,0.00024107,2]
[394927749,1764143440825,-179.5868,0.0002418,2]
[394927750,1764143440834,-153.79,0.00024196,2]
[394927751,1764143440843,-495.0,0.00024219,2]
[394927752,1764143440853,-200.0,0.0002423,2]
[394927753,1764143440862,-1350.0,0.0002424,7]
[394927754,1764143440871,-150.0,0.0002428,2]
[394927755,1764143440881,-507.0,0.00024289,2]
[394927756,1764143440890,-200.0,0.00024308,2]
[394927757,1764143440900,-507.0,0.00024332,2]
[394927758,1764143440911,-300.0,0.00024332,2]
[394927759,1764143440921,-507.0,0.00024453,7]
[394927760,1764143440932,-166.66,0.00024475,30]
[394927761,1764143440942,-410.84682802,0.0002453,2]
[394927763,1764143441042,-939.15317198,0.0002453,2]
[394927764,1764143441053,-161.57,0.00024658,2]
[394927765,1764143441067,-166.8,0.00024797,2]
[394927766,1764143441078,-999.0,0.00024812,3]
[394927767,1764143441088,-2.44954672,0.0002491,2]
[394927774,1764143471714,195.0,0.0002491,120]
[394927775,1764143471833,195.0,0.00024912,120]
[394927776,1764143589332,250.0,0.00017,2]
[394927777,1764143598707,150.39,0.00024837,120]
[394927778,1764143622479,500.0,0.00042032,120]
[394927779,1764143622908,500.0,0.00042032,120]
[394927780,1764143623087,500.0,0.00042032,120]
[394927796,1764144631463,-342.54256434,0.00019273,2]
[394927798,1764144631474,-250.0,0.00019276,2]
[394927799,1764144631487,-1200.0,0.00019326,2]
[394927800,1764144631496,-300.0,0.00019326,2]
[394927801,1764144631506,-1200.0,0.00019326,2]
[394927803,1764144631515,-641.72928491,0.00019327,2]
[394927805,1764144631527,-11827.66336345,0.00019327,2]
[394927806,1764144631539,-9693.38679785,0.00019327,2]
[394927807,1764144631552,-4024.03075629,0.00019327,2]
[394927808,1764144631561,-260.50884733,0.00019421,2]
[394927809,1764144631571,-734.63779204,0.0002,7]
[394927810,1764144631583,-6308.3674501,0.0002,7]
[394927811,1764144631707,-3176.99475786,0.0002,7]
[394927812,1764144631716,-507.17908441,0.0002045,2]
[394927813,1764144631726,-164.91611964,0.000208,2]
[394927814,1764144631735,-342.54256433,0.00020875,2]
[394927815,1764144631744,-193.98233714,0.00021151,2]
[394927816,1764144631754,-195.0,0.00021151,2]
[394927817,1764144631763,-30.52504821,0.00021151,2]
[394927849,1764144637696,-203.447452,0.00019176,2]
[394927852,1764144637706,-232.75445923,0.00021151,2]
[394927853,1764144637715,-122.55955236,0.00021151,2]
[394927854,1764144637728,-127.44044764,0.00021151,2]
[394927855,1764144637737,-162.82299744,0.00021753,2]
[394927856,1764144639756,-877.8247672,0.00021753,2]
[394927875,1764144645710,-11960.20329302,0.00021753,2]
[394927878,1764144661460,200.0,0.00042032,30]
[394927879,1764144821993,500.0,0.00042032,120]
[394927880,1764144822249,500.0,0.00042032,120]
[394927881,1764144822485,500.0,0.00042032,120]
[394927882,1764144822746,500.0,0.00042032,120]
[394927884,1764145212243,579.291445,0.00042032,50]
[394927885,1764145212485,579.291445,0.00042032,50]
[394927886,1764145212799,579.291445,0.00042032,50]
[394927887,1764145213098,579.291445,0.00042032,50]
[394927888,1764145213403,579.291445,0.00042032,50]
[394927889,1764145213702,579.291445,0.00042032,50]
[394927890,1764145213992,579.291445,0.00042032,50]
[394927891,1764145214271,579.291445,0.00042032,50]
[394927892,1764145214562,579.291445,0.00042032,50]
[394927893,1764145214867,579.291445,0.00042032,50]
[394927894,1764145215158,579.291445,0.00042032,50]
[394927895,1764145215494,579.291445,0.00042032,50]
[394927896,1764145215784,579.291445,0.00042032,50]
[394927897,1764145216068,579.291445,0.00042032,50]
[394927898,1764145216381,579.291445,0.00042032,50]
[394927899,1764145216708,579.291445,0.00042032,50]
[394927900,1764145217006,579.291445,0.00042032,50]
[394927901,1764145217358,579.291445,0.00042032,50]
[394927902,1764145217829,579.291445,0.00042032,50]
[394927903,1764145218110,579.291445,0.00042032,50]
[394927904,1764145414220,159.72,0.00011857,2]
[394927905,1764145430672,171.37931646,0.00042032,120]
[394927906,1764145454545,200566.62,0.00042032,30]
[394927909,1764145597218,59847.88928894,0.00019,14]
[394927911,1764145624408,39231.3583926,0.0002,30]
[394927955,1764145840116,-1200.0,0.00020705,2]
[394927956,1764145840129,-116.67,0.00020706,2]
[394927963,1764145846011,-133.33,0.00020706,2]
[394927964,1764145846021,-335.04725316,0.00020706,2]
[394927965,1764145846082,-869.29227437,0.00020706,2]
[394927967,1764145846163,-3554.32050996,0.00020706,2]
[394927968,1764145846175,-1793.32,0.00020706,2]
[394927970,1764145852362,750.78,0.00042032,120]
[394927971,1764145852637,750.78,0.00042032,120]
[394927972,1764145852847,750.78,0.00042032,120]
[394927973,1764145853085,750.78,0.00042032,120]
[394927974,1764145853613,750.78,0.00042032,120]
[394927975,1764145853695,750.78,0.00042032,120]
[394927976,1764145853925,750.78,0.00042032,120]
[394927977,1764145854161,750.78,0.00042032,120]
[394927978,1764145854397,750.78,0.00042032,120]
[394927979,1764145854636,750.78,0.00042032,120]
[394927980,1764145854883,750.78,0.00042032,120]
[394927981,1764145855262,750.78,0.00042032,120]
[394927982,1764145855385,750.78,0.00042032,120]
[394927983,1764145855620,750.78,0.00042032,120]
[394927984,1764145855862,750.78,0.00042032,120]
[394927985,1764145856100,750.78,0.00042032,120]
[394927986,1764145856463,750.78,0.00042032,120]
[394927987,1764145856727,750.78,0.00042032,120]
[394927988,1764145856967,750.78,0.00042032,120]
[394927989,1764145857199,750.78,0.00042032,120]
[394927990,1764145857428,750.78,0.00042032,120]
[394927991,1764145857667,750.78,0.00042032,120]
[394927992,1764145857902,750.78,0.00042032,120]
[394927993,1764145858127,750.98680176,0.00042032,120]
[394927994,1764145897926,566.15796884,0.00042032,120]
[394927995,1764145936854,500.0,0.00042032,120]
[394927996,1764145937114,500.0,0.00042032,120]
[394927997,1764145937349,500.0,0.00042032,120]
[394927998,1764145937628,500.0,0.00042032,120]
[394927999,1764145938049,500.0,0.00042032,120]
[394928000,1764145938102,500.0,0.00042032,120]
[394928001,1764145938348,500.0,0.00042032,120]
[394928002,1764145938600,500.0,0.00042032,120]
[394928003,1764145938846,500.0,0.00042032,120]
[394928004,1764145939088,500.0,0.00042032,120]
[394928005,1764145939328,500.0,0.00042032,120]
[394928006,1764145939575,379.06403279,0.00042032,120]
[394928009,1764146187585,1803.56,0.00042031,30]
[394928011,1764146499192,992.87,0.00042031,120]
[394928012,1764146499441,992.87,0.00042031,120]
[394928013,1764146499672,992.87,0.00042031,120]
[394928014,1764146499911,992.87,0.00042031,120]
[394928015,1764146500152,992.87,0.00042031,120]
[394928016,1764146500374,992.87,0.00042031,120]
[394928017,1764146500616,992.87,0.00042031,120]
[394928018,1764146500861,992.87,0.00042031,120]
[394928019,1764146501098,992.87,0.00042031,120]
[394928020,1764146501327,992.87,0.00042031,120]